[Event "Early-Titled-Tuesday-Blitz-March-05-2024"]
[Site "Chess.com"]
[Date "2024.03.05"]
[Round "6"]
[White "Meri-Arabidze"]
[Black "Eloist"]
[Result "1-0"]
[WhiteElo "2697"]
[BlackElo "2441"]
[TimeControl "180+1"]
[EndTime "9:08:36 PST"]
[Termination "Meri-Arabidze won on time"]

1. Nf3 {[%clk 0:03:00.9]} 1... Nf6 {[%clk 0:02:52.9]} 2. b3 {[%clk 0:03:00.8]}
2... g6 {[%clk 0:02:48.8]} 3. Bb2 {[%clk 0:03:01.7]} 3... Bg7 {[%clk 0:02:49.1]}
4. g3 {[%clk 0:03:01.4]} 4... O-O {[%clk 0:02:48.8]} 5. Bg2 {[%clk 0:03:01.7]}
5... b6 {[%clk 0:02:48.6]} 6. O-O {[%clk 0:03:01.7]} 6... Bb7 {[%clk 0:02:48.7]}
7. c4 {[%clk 0:03:02.3]} 7... c5 {[%clk 0:02:48.4]} 8. d3 {[%clk 0:03:02.7]}
8... Nc6 {[%clk 0:02:43.4]} 9. Nc3 {[%clk 0:03:02.2]} 9... e6 {[%clk 0:02:41.8]}
10. e4 {[%clk 0:02:49.8]} 10... d6 {[%clk 0:02:34.9]} 11. Re1 {[%clk 0:02:48.6]}
11... Nd7 {[%clk 0:02:21.9]} 12. Qd2 {[%clk 0:02:47.4]} 12... Nde5 {[%clk
0:02:20.4]} 13. Ne2 {[%clk 0:02:42.3]} 13... Nxf3+ {[%clk 0:02:15.5]} 14. Bxf3
{[%clk 0:02:43.2]} 14... Bxb2 {[%clk 0:02:10.8]} 15. Qxb2 {[%clk 0:02:43.3]}
15... Ne5 {[%clk 0:02:08.7]} 16. Bg2 {[%clk 0:02:40.2]} 16... Nxd3 {[%clk
0:02:08]} 17. Qd2 {[%clk 0:02:40.9]} 17... Nxe1 {[%clk 0:02:07.8]} 18. Rxe1
{[%clk 0:02:41.8]} 18... Qe7 {[%clk 0:01:56.9]} 19. h4 {[%clk 0:02:36.8]} 19...
f5 {[%clk 0:01:47.3]} 20. Nf4 {[%clk 0:02:34.4]} 20... e5 {[%clk 0:01:38.7]} 21.
exf5 {[%clk 0:02:30]} 21... Bxg2 {[%clk 0:01:33.6]} 22. Kxg2 {[%clk 0:02:30.1]}
22... gxf5 {[%clk 0:01:27.5]} 23. Nd5 {[%clk 0:02:29.7]} 23... Qg7 {[%clk
0:01:20.7]} 24. h5 {[%clk 0:02:29.7]} 24... f4 {[%clk 0:01:15.4]} 25. Qd3 {[%clk
0:02:18.6]} 25... Rae8 {[%clk 0:01:11.7]} 26. Qe4 {[%clk 0:02:13.3]} 26... Qg5
{[%clk 0:01:05.8]} 27. Rh1 {[%clk 0:02:05.5]} 27... Qf5 {[%clk 0:01:00.9]} 28.
Qxf5 {[%clk 0:01:48.3]} 28... Rxf5 {[%clk 0:01:00.3]} 29. g4 {[%clk 0:01:49.2]}
29... Rf7 {[%clk 0:00:49.2]} 30. g5 {[%clk 0:01:46.6]} 30... Re6 {[%clk
0:00:30.3]} 31. Kf3 {[%clk 0:01:37.5]} 31... e4+ {[%clk 0:00:29.1]} 32. Kg4
{[%clk 0:01:37.9]} 32... e3 {[%clk 0:00:20.2]} 33. f3 {[%clk 0:01:38.3]} 33...
e2 {[%clk 0:00:18.1]} 34. Re1 {[%clk 0:01:38.4]} 34... Kg7 {[%clk 0:00:14.1]}
35. Nxf4 {[%clk 0:01:37.1]} 35... Re5 {[%clk 0:00:11.9]} 36. Nd5 {[%clk
0:01:23.5]} 36... Rff5 {[%clk 0:00:10.6]} 37. f4 {[%clk 0:01:23.5]} 37... Rxd5
{[%clk 0:00:03.1]} 38. cxd5 {[%clk 0:01:24.4]} 38... Rxd5 {[%clk 0:00:02.4]} 39.
Rxe2 {[%clk 0:01:25.1]} 39... Kf7 {[%clk 0:00:01.5]} 40. Rh2 {[%clk 0:01:14.6]}
40... Rd4 {[%clk 0:00:01.4]} 41. Kf5 {[%clk 0:01:13.8]} 41... Rd5+ {[%clk
0:00:01.2]} 42. Kg4 {[%clk 0:01:13.5]} 42... Rd4 {[%clk 0:00:01.7]} 43. h6
{[%clk 0:01:10.8]} 43... b5 {[%clk 0:00:01.1]} 44. Rf2 {[%clk 0:01:01.9]} 1-0

[Event "Early-Titled-Tuesday-Blitz-March-05-2024"]
[Site "Chess.com"]
[Date "2024.03.05"]
[Round "6"]
[White "JG-17"]
[Black "Kildepiotr"]
[Result "0-1"]
[WhiteElo "2498"]
[BlackElo "2683"]
[TimeControl "180+1"]
[EndTime "9:08:37 PST"]
[Termination "Kildepiotr won on time"]

1. d4 {[%clk 0:02:56.9]} 1... c5 {[%clk 0:02:55.4]} 2. dxc5 {[%clk 0:02:53.7]}
2... e6 {[%clk 0:02:55.6]} 3. Be3 {[%clk 0:02:47.9]} 3... Na6 {[%clk 0:02:55.2]}
4. Nf3 {[%clk 0:02:47.6]} 4... Nxc5 {[%clk 0:02:55.2]} 5. Nc3 {[%clk 0:02:46.4]}
5... d5 {[%clk 0:02:55.2]} 6. Bd4 {[%clk 0:02:45.6]} 6... Nf6 {[%clk 0:02:55.1]}
7. e3 {[%clk 0:02:45.2]} 7... a6 {[%clk 0:02:55]} 8. a4 {[%clk 0:02:44.3]} 8...
Bd6 {[%clk 0:02:50.5]} 9. Be5 {[%clk 0:02:41.9]} 9... O-O {[%clk 0:02:49.5]} 10.
Be2 {[%clk 0:02:40]} 10... Bxe5 {[%clk 0:02:43.7]} 11. Nxe5 {[%clk 0:02:40]}
11... Qc7 {[%clk 0:02:44]} 12. Qd4 {[%clk 0:02:39.3]} 12... Rd8 {[%clk
0:02:32.9]} 13. O-O {[%clk 0:02:37.9]} 13... Nfe4 {[%clk 0:02:30.9]} 14. Nxe4
{[%clk 0:02:36.7]} 14... Nxe4 {[%clk 0:02:21.9]} 15. f3 {[%clk 0:01:59.8]} 15...
Nd6 {[%clk 0:02:14.8]} 16. Qc3 {[%clk 0:01:46.6]} 16... Qxc3 {[%clk 0:02:13]}
17. bxc3 {[%clk 0:01:47.5]} 17... f6 {[%clk 0:02:12.7]} 18. Nd3 {[%clk
0:01:46.5]} 18... Bd7 {[%clk 0:02:06.8]} 19. Nc5 {[%clk 0:01:44.2]} 19... Rac8
{[%clk 0:02:06.1]} 20. Nxd7 {[%clk 0:01:43.8]} 20... Rxd7 {[%clk 0:02:07]} 21.
Ra3 {[%clk 0:01:44.2]} 21... Rdc7 {[%clk 0:02:06]} 22. Rb1 {[%clk 0:01:37.9]}
22... Rxc3 {[%clk 0:02:05.8]} 23. Rxc3 {[%clk 0:01:37]} 23... Rxc3 {[%clk
0:02:06.7]} 24. Bd3 {[%clk 0:01:36.1]} 24... Kf7 {[%clk 0:02:01.8]} 25. Kf2
{[%clk 0:01:34.5]} 25... h6 {[%clk 0:02:00.1]} 26. Ra1 {[%clk 0:01:27.5]} 26...
Ke7 {[%clk 0:01:58.4]} 27. Ke2 {[%clk 0:01:28]} 27... Kd7 {[%clk 0:01:55.1]} 28.
Kd2 {[%clk 0:01:28.2]} 28... Rc5 {[%clk 0:01:55]} 29. a5 {[%clk 0:01:23]} 29...
Kc7 {[%clk 0:01:54.1]} 30. h4 {[%clk 0:01:21]} 30... e5 {[%clk 0:01:54]} 31. e4
{[%clk 0:01:19.1]} 31... d4 {[%clk 0:01:50.9]} 32. g4 {[%clk 0:01:15.8]} 32...
Nc4+ {[%clk 0:01:45.7]} 33. Bxc4 {[%clk 0:01:09]} 33... Rxc4 {[%clk 0:01:46.6]}
34. g5 {[%clk 0:01:08.5]} 34... hxg5 {[%clk 0:01:46.2]} 35. hxg5 {[%clk
0:01:09.4]} 35... Rc3 {[%clk 0:01:46.7]} 36. gxf6 {[%clk 0:01:00.2]} 36... gxf6
{[%clk 0:01:47.6]} 37. Rf1 {[%clk 0:01:00]} 37... Ra3 {[%clk 0:01:44.3]} 38. f4
{[%clk 0:00:59.9]} 38... Rxa5 {[%clk 0:01:43.1]} 39. f5 {[%clk 0:00:52.7]} 39...
Rc5 {[%clk 0:01:39.2]} 40. Rg1 {[%clk 0:00:49.2]} 40... Rc6 {[%clk 0:01:38.8]}
41. Rg7+ {[%clk 0:00:41.5]} 41... Kb6 {[%clk 0:01:39]} 42. Re7 {[%clk
0:00:38.7]} 42... a5 {[%clk 0:01:38.6]} 43. Re8 {[%clk 0:00:32.4]} 43... Kb5
{[%clk 0:01:37]} 44. Kc1 {[%clk 0:00:26.7]} 44... d3 {[%clk 0:01:36.8]} 45. Kb2
{[%clk 0:00:23.7]} 45... dxc2 {[%clk 0:01:34.5]} 46. Kc1 {[%clk 0:00:22.8]}
46... Kc4 {[%clk 0:01:31.2]} 47. Rd8 {[%clk 0:00:08.4]} 47... Kb3 {[%clk
0:01:26.9]} 48. Rd3+ {[%clk 0:00:07.7]} 48... Kb4 {[%clk 0:01:25.7]} 49. Rd7
{[%clk 0:00:05.6]} 49... b5 {[%clk 0:01:25.5]} 50. Rd3 {[%clk 0:00:04.4]} 50...
a4 {[%clk 0:01:25.1]} 51. Re3 {[%clk 0:00:01.8]} 51... a3 {[%clk 0:01:24.6]} 52.
Re1 {[%clk 0:00:01.7]} 52... Ka4 {[%clk 0:01:20.6]} 53. Re3 {[%clk 0:00:01.1]}
53... b4 {[%clk 0:01:20.9]} 0-1

[Event "Early-Titled-Tuesday-Blitz-March-05-2024"]
[Site "Chess.com"]
[Date "2024.03.05"]
[Round "6"]
[White "ilqar_74"]
[Black "FoxOnTheRun97"]
[Result "1-0"]
[WhiteElo "2841"]
[BlackElo "2637"]
[TimeControl "180+1"]
[EndTime "9:08:41 PST"]
[Termination "ilqar_74 won on time"]

1. e4 {[%clk 0:02:59.7]} 1... c6 {[%clk 0:02:59.9]} 2. Nf3 {[%clk 0:02:57.2]}
2... d5 {[%clk 0:03:00.6]} 3. Nc3 {[%clk 0:02:58]} 3... Bg4 {[%clk 0:02:59.9]}
4. h3 {[%clk 0:02:57.9]} 4... Bxf3 {[%clk 0:02:59.7]} 5. Qxf3 {[%clk 0:02:58.8]}
5... e6 {[%clk 0:03:00.3]} 6. d4 {[%clk 0:02:59.3]} 6... Nf6 {[%clk 0:03:00]} 7.
Bd3 {[%clk 0:02:58.9]} 7... dxe4 {[%clk 0:02:56.2]} 8. Nxe4 {[%clk 0:02:59.5]}
8... Nxe4 {[%clk 0:02:53.5]} 9. Qxe4 {[%clk 0:02:59.3]} 9... Qd5 {[%clk
0:02:52.6]} 10. c3 {[%clk 0:02:55.1]} 10... Nd7 {[%clk 0:02:51.7]} 11. O-O
{[%clk 0:02:54.8]} 11... Nf6 {[%clk 0:02:46.8]} 12. Qe2 {[%clk 0:02:53.7]} 12...
Be7 {[%clk 0:02:42.9]} 13. Be3 {[%clk 0:02:52.1]} 13... O-O {[%clk 0:02:42.8]}
14. c4 {[%clk 0:02:51.7]} 14... Qd7 {[%clk 0:02:41.3]} 15. Rad1 {[%clk
0:02:50.8]} 15... a6 {[%clk 0:02:32.4]} 16. Bb1 {[%clk 0:02:50.4]} 16... b5
{[%clk 0:02:31.4]} 17. b3 {[%clk 0:02:50.3]} 17... Rfd8 {[%clk 0:02:28.7]} 18.
Bg5 {[%clk 0:02:49.2]} 18... h6 {[%clk 0:02:26.1]} 19. Bh4 {[%clk 0:02:48.8]}
19... bxc4 {[%clk 0:02:20.5]} 20. bxc4 {[%clk 0:02:49.7]} 20... Rab8 {[%clk
0:02:17]} 21. Qd3 {[%clk 0:02:46.4]} 21... Kf8 {[%clk 0:02:13]} 22. Qf3 {[%clk
0:02:38.5]} 22... Rb2 {[%clk 0:02:05.2]} 23. Rfe1 {[%clk 0:02:31.6]} 23... Rdb8
{[%clk 0:01:52.1]} 24. Bg3 {[%clk 0:02:21.9]} 24... Bd6 {[%clk 0:01:48.1]} 25.
Be5 {[%clk 0:02:21.9]} 25... Ne8 {[%clk 0:01:34.7]} 26. Qe4 {[%clk 0:01:52.6]}
26... Bxe5 {[%clk 0:01:25.2]} 27. dxe5 {[%clk 0:01:52.3]} 27... Rd2 {[%clk
0:01:25.4]} 28. Bc2 {[%clk 0:01:35.7]} 28... Rb2 {[%clk 0:01:18.4]} 29. Ba4
{[%clk 0:01:33.5]} 29... Rxa2 {[%clk 0:00:48.9]} 30. Qxc6 {[%clk 0:01:11]} 30...
Qxc6 {[%clk 0:00:43.7]} 31. Bxc6 {[%clk 0:01:11]} 31... Nc7 {[%clk 0:00:18.2]}
32. Rxd2 {[%clk 0:01:08.8]} 32... Rxd2 {[%clk 0:00:19.1]} 33. Rb1 {[%clk
0:01:09.3]} 33... Rd8 {[%clk 0:00:11.1]} 34. Rb7 {[%clk 0:01:06.8]} 34... Ne8
{[%clk 0:00:10.9]} 35. Ra7 {[%clk 0:00:57.2]} 35... Rc8 {[%clk 0:00:08.3]} 36.
Rxa6 {[%clk 0:00:57.2]} 36... Nc7 {[%clk 0:00:04.5]} 37. Ra7 {[%clk 0:00:56.2]}
37... Ne8 {[%clk 0:00:03.3]} 38. Bb5 {[%clk 0:00:50.1]} 38... g5 {[%clk
0:00:02.5]} 39. g4 {[%clk 0:00:45.1]} 1-0

[Event "Early-Titled-Tuesday-Blitz-March-05-2024"]
[Site "Chess.com"]
[Date "2024.03.05"]
[Round "6"]
[White "pr1105"]
[Black "Actuary44"]
[Result "0-1"]
[WhiteElo "2358"]
[BlackElo "2546"]
[TimeControl "180+1"]
[EndTime "9:08:43 PST"]
[Termination "Actuary44 won by resignation"]

1. e4 {[%clk 0:02:30.7]} 1... b6 {[%clk 0:02:58.7]} 2. d4 {[%clk 0:02:30.8]}
2... Bb7 {[%clk 0:02:59.3]} 3. Nc3 {[%clk 0:02:31.2]} 3... e6 {[%clk 0:02:59.9]}
4. Bd3 {[%clk 0:02:24.9]} 4... Nf6 {[%clk 0:03:00.3]} 5. Qe2 {[%clk 0:02:17]}
5... d5 {[%clk 0:03:00.4]} 6. e5 {[%clk 0:02:17]} 6... Nfd7 {[%clk 0:03:00.2]}
7. Nd1 {[%clk 0:02:12.4]} 7... c5 {[%clk 0:03:00.6]} 8. c3 {[%clk 0:02:12.7]}
8... Nc6 {[%clk 0:03:01.3]} 9. Nf3 {[%clk 0:02:12.2]} 9... Qc7 {[%clk
0:03:01.5]} 10. a3 {[%clk 0:02:09.5]} 10... h6 {[%clk 0:03:00.4]} 11. h4 {[%clk
0:01:57.6]} 11... O-O-O {[%clk 0:02:59.9]} 12. b4 {[%clk 0:01:54.8]} 12... c4
{[%clk 0:02:59.8]} 13. Bc2 {[%clk 0:01:54.7]} 13... Re8 {[%clk 0:02:55.7]} 14.
Bf4 {[%clk 0:01:37.3]} 14... f6 {[%clk 0:02:54.3]} 15. Bg6 {[%clk 0:01:36.6]}
15... Rd8 {[%clk 0:02:45.2]} 16. g3 {[%clk 0:01:15.4]} 16... fxe5 {[%clk
0:02:34.3]} 17. dxe5 {[%clk 0:01:08.9]} 17... d4 {[%clk 0:02:00.6]} 18. Qxc4
{[%clk 0:00:56.2]} 18... Ne7 {[%clk 0:02:00.3]} 19. Qxe6 {[%clk 0:00:24.3]}
19... Bxf3 {[%clk 0:01:51]} 20. O-O {[%clk 0:00:24.4]} 20... Qc6 {[%clk
0:01:29.2]} 21. Qxc6+ {[%clk 0:00:15.7]} 21... Bxc6 {[%clk 0:01:30.1]} 22. Bd3
{[%clk 0:00:15.4]} 22... Nd5 {[%clk 0:01:28]} 23. cxd4 {[%clk 0:00:13.6]} 23...
Nxf4 {[%clk 0:01:27.6]} 24. gxf4 {[%clk 0:00:14.5]} 24... Be7 {[%clk 0:01:17.5]}
25. Rc1 {[%clk 0:00:12.8]} 25... Kb7 {[%clk 0:01:16.3]} 26. Nc3 {[%clk
0:00:08.9]} 26... Bf3 {[%clk 0:01:08.9]} 27. d5 {[%clk 0:00:05.3]} 27... Bxh4
{[%clk 0:01:07.8]} 28. Rfe1 {[%clk 0:00:05]} 28... Rhf8 {[%clk 0:01:04.6]} 29.
Re3 {[%clk 0:00:05.1]} 29... Rxf4 {[%clk 0:01:03.8]} 30. e6 {[%clk 0:00:05.6]}
30... Nf6 {[%clk 0:00:51.2]} 31. e7 {[%clk 0:00:04.7]} 31... Re8 {[%clk
0:00:51.7]} 32. d6 {[%clk 0:00:04.6]} 32... Rg4+ {[%clk 0:00:45.6]} 33. Kh2
{[%clk 0:00:04.5]} 33... Bg5 {[%clk 0:00:40.9]} 34. Rxf3 {[%clk 0:00:04.3]}
34... Bxc1 {[%clk 0:00:40.1]} 35. Ne4 {[%clk 0:00:04.9]} 35... Nxe4 {[%clk
0:00:39.2]} 36. Bxe4+ {[%clk 0:00:05.2]} 36... Rxe4 {[%clk 0:00:39.1]} 37. Rf8
{[%clk 0:00:06.1]} 37... R8xe7 {[%clk 0:00:34.7]} 38. dxe7 {[%clk 0:00:07]}
38... Rxe7 {[%clk 0:00:35]} 0-1

[Event "Early-Titled-Tuesday-Blitz-March-05-2024"]
[Site "Chess.com"]
[Date "2024.03.05"]
[Round "6"]
[White "Zhigalko_Sergei"]
[Black "Mikhail_Golubev"]
[Result "1-0"]
[WhiteElo "2900"]
[BlackElo "2665"]
[TimeControl "180+1"]
[EndTime "9:08:44 PST"]
[Termination "Zhigalko_Sergei won by resignation"]

1. e4 {[%clk 0:03:00.9]} 1... c5 {[%clk 0:03:00.3]} 2. Nf3 {[%clk 0:03:00.4]}
2... g6 {[%clk 0:03:00.5]} 3. c3 {[%clk 0:03:00.7]} 3... d5 {[%clk 0:02:58.7]}
4. exd5 {[%clk 0:03:00.7]} 4... Qxd5 {[%clk 0:02:59.3]} 5. d4 {[%clk 0:03:01.3]}
5... Bg7 {[%clk 0:02:59]} 6. Na3 {[%clk 0:03:01.7]} 6... cxd4 {[%clk 0:02:57.3]}
7. Bc4 {[%clk 0:03:01.7]} 7... Qe4+ {[%clk 0:02:57.3]} 8. Be3 {[%clk 0:03:02.1]}
8... Nh6 {[%clk 0:02:56.7]} 9. Nb5 {[%clk 0:03:01.3]} 9... O-O {[%clk
0:02:18.5]} 10. cxd4 {[%clk 0:02:57.7]} 10... Ng4 {[%clk 0:01:49]} 11. Qe2
{[%clk 0:02:54.5]} 11... Nxe3 {[%clk 0:01:43.6]} 12. fxe3 {[%clk 0:02:54.3]}
12... Nc6 {[%clk 0:01:31.6]} 13. O-O {[%clk 0:02:50]} 13... Bg4 {[%clk 0:01:22]}
14. Nc3 {[%clk 0:02:26.6]} 14... Qf5 {[%clk 0:00:59.2]} 15. h3 {[%clk
0:02:20.4]} 15... Bxf3 {[%clk 0:00:59.3]} 16. Rxf3 {[%clk 0:02:21.3]} 16... Qd7
{[%clk 0:00:59.4]} 17. Raf1 {[%clk 0:02:00.7]} 17... e6 {[%clk 0:00:59.6]} 18.
Ne4 {[%clk 0:02:01.3]} 18... Rac8 {[%clk 0:00:34.2]} 19. Nc5 {[%clk 0:01:10.2]}
19... Qe7 {[%clk 0:00:31.3]} 20. Rxf7 {[%clk 0:00:49.1]} 20... Rxf7 {[%clk
0:00:08.7]} 21. Rxf7 {[%clk 0:00:48.9]} 21... Nxd4 {[%clk 0:00:01.6]} 22. exd4
{[%clk 0:00:25]} 22... Bxd4+ {[%clk 0:00:02.5]} 23. Kh1 {[%clk 0:00:24.6]} 23...
Qxc5 {[%clk 0:00:03.3]} 24. Bxe6 {[%clk 0:00:25.2]} 24... Kh8 {[%clk 0:00:02.9]}
25. Bxc8 {[%clk 0:00:23.8]} 25... Qxc8 {[%clk 0:00:02.4]} 26. Qf1 {[%clk
0:00:16.6]} 26... Qe6 {[%clk 0:00:02.2]} 27. Rxb7 {[%clk 0:00:14.6]} 1-0

[Event "Early-Titled-Tuesday-Blitz-March-05-2024"]
[Site "Chess.com"]
[Date "2024.03.05"]
[Round "6"]
[White "NewYearGirl"]
[Black "viktorskliarov"]
[Result "1-0"]
[WhiteElo "2396"]
[BlackElo "2591"]
[TimeControl "180+1"]
[EndTime "9:08:44 PST"]
[Termination "NewYearGirl won by resignation"]

1. e4 {[%clk 0:03:00.9]} 1... c5 {[%clk 0:02:59.9]} 2. Nf3 {[%clk 0:03:01.1]}
2... Nc6 {[%clk 0:03:00.4]} 3. d4 {[%clk 0:03:01.7]} 3... cxd4 {[%clk 0:03:01]}
4. Nxd4 {[%clk 0:03:02.6]} 4... Nf6 {[%clk 0:03:01.6]} 5. Nc3 {[%clk 0:03:02.7]}
5... e5 {[%clk 0:03:02]} 6. Ndb5 {[%clk 0:03:03.2]} 6... d6 {[%clk 0:03:02.3]}
7. Nd5 {[%clk 0:03:02.1]} 7... Nxd5 {[%clk 0:03:02.4]} 8. exd5 {[%clk 0:03:03]}
8... Nb8 {[%clk 0:03:03.1]} 9. a4 {[%clk 0:03:03.6]} 9... a6 {[%clk 0:03:02.1]}
10. Na3 {[%clk 0:03:03.8]} 10... Be7 {[%clk 0:03:02.2]} 11. Be2 {[%clk
0:03:03.5]} 11... O-O {[%clk 0:03:02.1]} 12. O-O {[%clk 0:03:03.8]} 12... f5
{[%clk 0:03:00.5]} 13. f4 {[%clk 0:03:04.1]} 13... exf4 {[%clk 0:02:54.9]} 14.
Bxf4 {[%clk 0:03:02.3]} 14... Bg5 {[%clk 0:02:47.3]} 15. Nc4 {[%clk 0:02:55]}
15... Bxf4 {[%clk 0:02:42.6]} 16. Rxf4 {[%clk 0:02:55.9]} 16... Nd7 {[%clk
0:02:42.7]} 17. Qf1 {[%clk 0:02:37.4]} 17... Nf6 {[%clk 0:02:28.1]} 18. Bf3
{[%clk 0:02:29.3]} 18... Bd7 {[%clk 0:02:15]} 19. g3 {[%clk 0:01:57.1]} 19... g6
{[%clk 0:01:43.1]} 20. Qf2 {[%clk 0:01:51]} 20... Qc7 {[%clk 0:01:35.7]} 21. Qb6
{[%clk 0:01:47.1]} 21... Qc5+ {[%clk 0:01:07.6]} 22. Qxc5 {[%clk 0:01:45.2]}
22... dxc5 {[%clk 0:01:07.5]} 23. Nb6 {[%clk 0:01:40.2]} 23... Rad8 {[%clk
0:00:35]} 24. Rc4 {[%clk 0:01:40.7]} 24... Ne4 {[%clk 0:00:26.3]} 25. Bxe4
{[%clk 0:01:34.5]} 25... fxe4 {[%clk 0:00:27.2]} 26. Rxc5 {[%clk 0:01:24.4]}
26... Bh3 {[%clk 0:00:24.2]} 27. Nc4 {[%clk 0:01:07.8]} 27... Rf6 {[%clk
0:00:19.5]} 28. Ne3 {[%clk 0:01:05.7]} 28... Rdf8 {[%clk 0:00:18.9]} 29. Re1
{[%clk 0:00:57.7]} 29... Rf3 {[%clk 0:00:18.8]} 30. Rc3 {[%clk 0:00:58.3]} 30...
h5 {[%clk 0:00:13.2]} 31. Ng2 {[%clk 0:00:54.4]} 31... Rf2 {[%clk 0:00:04.6]}
32. Nf4 {[%clk 0:00:48.8]} 32... R2xf4 {[%clk 0:00:04.3]} 33. gxf4 {[%clk
0:00:48.8]} 33... Bf5 {[%clk 0:00:04.3]} 34. d6 {[%clk 0:00:47.3]} 34... Rd8
{[%clk 0:00:04.6]} 35. Rd1 {[%clk 0:00:47.6]} 35... Kf7 {[%clk 0:00:04.4]} 36.
Rc7+ {[%clk 0:00:46.7]} 36... Ke6 {[%clk 0:00:05]} 37. Re7+ {[%clk 0:00:46.6]}
37... Kf6 {[%clk 0:00:04.8]} 38. Rxb7 {[%clk 0:00:46.9]} 38... a5 {[%clk
0:00:05.4]} 39. c4 {[%clk 0:00:46.7]} 1-0

[Event "Early-Titled-Tuesday-Blitz-March-05-2024"]
[Site "Chess.com"]
[Date "2024.03.05"]
[Round "6"]
[White "Alenzer"]
[Black "goodnigth"]
[Result "1-0"]
[WhiteElo "2176"]
[BlackElo "1903"]
[TimeControl "180+1"]
[EndTime "9:08:45 PST"]
[Termination "Alenzer won on time"]

1. e4 {[%clk 0:03:00.9]} 1... c5 {[%clk 0:02:59.4]} 2. Nf3 {[%clk 0:02:59.3]}
2... d6 {[%clk 0:02:59.6]} 3. c3 {[%clk 0:02:58.7]} 3... Nf6 {[%clk 0:02:43.3]}
4. h3 {[%clk 0:02:57.9]} 4... Nc6 {[%clk 0:02:40.2]} 5. Bd3 {[%clk 0:02:56.7]}
5... e5 {[%clk 0:02:40.7]} 6. Bc2 {[%clk 0:02:53.6]} 6... g6 {[%clk 0:02:36.7]}
7. O-O {[%clk 0:02:49]} 7... Bg7 {[%clk 0:02:36.3]} 8. d4 {[%clk 0:02:46.8]}
8... exd4 {[%clk 0:02:36.7]} 9. cxd4 {[%clk 0:02:46.9]} 9... cxd4 {[%clk
0:02:33.9]} 10. Nxd4 {[%clk 0:02:47.2]} 10... O-O {[%clk 0:02:33]} 11. Nc3
{[%clk 0:02:37.1]} 11... d5 {[%clk 0:02:29.3]} 12. Nxc6 {[%clk 0:02:34.7]} 12...
bxc6 {[%clk 0:02:30.2]} 13. e5 {[%clk 0:02:30.8]} 13... Nd7 {[%clk 0:02:14.3]}
14. f4 {[%clk 0:02:30.1]} 14... f6 {[%clk 0:01:38.7]} 15. exf6 {[%clk
0:01:46.8]} 15... Nxf6 {[%clk 0:01:30.4]} 16. f5 {[%clk 0:01:37.2]} 16... gxf5
{[%clk 0:00:52.1]} 17. Bxf5 {[%clk 0:01:34.8]} 17... Ne4 {[%clk 0:00:28.3]} 18.
Bxe4 {[%clk 0:00:58.2]} 18... Rxf1+ {[%clk 0:00:24.8]} 19. Kxf1 {[%clk
0:00:54.7]} 19... Ba6+ {[%clk 0:00:13.1]} 20. Bd3 {[%clk 0:00:54.8]} 20... Qf6+
{[%clk 0:00:12.7]} 21. Ke1 {[%clk 0:00:29.4]} 21... Re8+ {[%clk 0:00:11.3]} 22.
Ne2 {[%clk 0:00:28.9]} 22... Qh4+ {[%clk 0:00:05.5]} 23. Kd2 {[%clk 0:00:22.3]}
23... Qb4+ {[%clk 0:00:02.6]} 24. Kc2 {[%clk 0:00:18.5]} 24... Qa4+ {[%clk
0:00:02.6]} 25. b3 {[%clk 0:00:15.5]} 25... Qa5 {[%clk 0:00:01.2]} 26. Bb2
{[%clk 0:00:10.9]} 1-0

[Event "Early-Titled-Tuesday-Blitz-March-05-2024"]
[Site "Chess.com"]
[Date "2024.03.05"]
[Round "6"]
[White "ActorXu"]
[Black "Harry_Rakkel"]
[Result "1/2-1/2"]
[WhiteElo "2850"]
[BlackElo "2693"]
[TimeControl "180+1"]
[EndTime "9:08:46 PST"]
[Termination "Game drawn by repetition"]

1. e4 {[%clk 0:03:00.9]} 1... c5 {[%clk 0:02:57.3]} 2. Nf3 {[%clk 0:03:01.1]}
2... d6 {[%clk 0:02:56.4]} 3. Bb5+ {[%clk 0:03:01.2]} 3... Bd7 {[%clk 0:02:56]}
4. c4 {[%clk 0:03:00.7]} 4... Nc6 {[%clk 0:02:52.9]} 5. O-O {[%clk 0:03:00.2]}
5... Nf6 {[%clk 0:02:50.1]} 6. Nc3 {[%clk 0:03:00.5]} 6... e6 {[%clk 0:02:49.3]}
7. d4 {[%clk 0:03:00.6]} 7... cxd4 {[%clk 0:02:48.3]} 8. Nxd4 {[%clk 0:03:01.2]}
8... Be7 {[%clk 0:02:48]} 9. Be3 {[%clk 0:03:01]} 9... O-O {[%clk 0:02:47.4]}
10. f3 {[%clk 0:02:57.6]} 10... Qc7 {[%clk 0:02:44.7]} 11. Rc1 {[%clk
0:02:55.2]} 11... Rfc8 {[%clk 0:02:39.4]} 12. Bxc6 {[%clk 0:02:51.8]} 12... bxc6
{[%clk 0:02:37.8]} 13. c5 {[%clk 0:02:51.6]} 13... d5 {[%clk 0:02:34.8]} 14. b4
{[%clk 0:02:26]} 14... e5 {[%clk 0:02:07.1]} 15. Nxc6 {[%clk 0:02:25.5]} 15...
Qxc6 {[%clk 0:01:56.3]} 16. exd5 {[%clk 0:02:20.5]} 16... Qa6 {[%clk 0:01:55.5]}
17. a4 {[%clk 0:02:14.7]} 17... Bf5 {[%clk 0:01:34.8]} 18. d6 {[%clk 0:02:09.2]}
18... Bf8 {[%clk 0:01:31.6]} 19. b5 {[%clk 0:02:06.7]} 19... Qa5 {[%clk
0:01:30.4]} 20. c6 {[%clk 0:02:03.8]} 20... Rd8 {[%clk 0:01:23.8]} 21. Bc5
{[%clk 0:01:44.1]} 21... Rac8 {[%clk 0:01:06.9]} 22. Nd5 {[%clk 0:01:37.4]}
22... Nxd5 {[%clk 0:00:58.4]} 23. Qxd5 {[%clk 0:01:37.1]} 23... Qxa4 {[%clk
0:00:43.6]} 24. d7 {[%clk 0:01:24.1]} 24... Bxd7 {[%clk 0:00:32.1]} 25. cxd7
{[%clk 0:01:21.1]} 25... Rxc5 {[%clk 0:00:31.4]} 26. Rxc5 {[%clk 0:01:21.8]}
26... Bxc5+ {[%clk 0:00:30.2]} 27. Qxc5 {[%clk 0:01:22.5]} 27... Qd4+ {[%clk
0:00:29.3]} 28. Qxd4 {[%clk 0:01:18.1]} 28... exd4 {[%clk 0:00:30.2]} 29. Ra1
{[%clk 0:01:11.1]} 29... d3 {[%clk 0:00:24.4]} 30. Kf2 {[%clk 0:01:00.5]} 30...
d2 {[%clk 0:00:24.4]} 31. Ke2 {[%clk 0:01:00.2]} 31... Rxd7 {[%clk 0:00:24.2]}
32. Rd1 {[%clk 0:00:55.9]} 32... Kf8 {[%clk 0:00:22.8]} 33. Rxd2 {[%clk
0:00:54]} 33... Rb7 {[%clk 0:00:20.6]} 34. Rd8+ {[%clk 0:00:50.4]} 34... Ke7
{[%clk 0:00:20.5]} 35. Ra8 {[%clk 0:00:46]} 35... h5 {[%clk 0:00:19.5]} 36. Kd3
{[%clk 0:00:43.6]} 36... Rxb5 {[%clk 0:00:19.4]} 37. Rxa7+ {[%clk 0:00:43.6]}
37... Kf6 {[%clk 0:00:19.6]} 38. Ra2 {[%clk 0:00:39.2]} 38... Rb3+ {[%clk
0:00:18.1]} 39. Ke2 {[%clk 0:00:39]} 39... Kg6 {[%clk 0:00:16.7]} 40. Kf2 {[%clk
0:00:39.4]} 40... f6 {[%clk 0:00:14.7]} 41. h4 {[%clk 0:00:39.6]} 41... Rc3
{[%clk 0:00:14.8]} 42. Kg3 {[%clk 0:00:40.1]} 42... Rb3 {[%clk 0:00:15.2]} 43.
Kf2 {[%clk 0:00:39.9]} 43... Rc3 {[%clk 0:00:15.4]} 44. Kg3 {[%clk 0:00:40.5]}
44... Rb3 {[%clk 0:00:15.8]} 45. Kf2 {[%clk 0:00:41.1]} 1/2-1/2